bitfinex/quotes_BTCUSD_20230906
["timestamp","ask_amount","ask_price","bid_price","bid_amount"]
[1694027091544,0.006,25648.0,25647.0,4.18376322]
[1694027091984,0.006,25648.0,25647.0,4.27700557]
[1694027092158,0.006,25648.0,25647.0,3.81579601]
[1694027092355,0.006,25648.0,25647.0,4.18375557]
[1694027092722,0.006,25648.0,25647.0,4.27702681]
[1694027093117,0.006,25648.0,25647.0,3.8158249]
[1694027093335,0.006,25648.0,25647.0,4.18376195]
[1694027094436,0.006,25648.0,25647.0,4.37036781]
[1694027095072,0.006,25648.0,25647.0,4.40148764]
[1694027095793,0.006,25648.0,25647.0,3.97058764]
[1694027096003,0.006,25648.0,25647.0,3.39733651]
[1694027096206,0.006,25648.0,25647.0,3.02949863]
[1694027096897,0.006,25648.0,25647.0,3.39735155]
[1694027097111,0.006,25648.0,25647.0,3.49072376]
[1694027097320,0.006,25648.0,25647.0,3.39735155]
[1694027097521,0.006,25648.0,25647.0,3.83064829]
[1694027097729,0.006,25648.0,25647.0,3.97071997]
[1694027097928,0.006,25648.0,25647.0,3.78411411]
[1694027098639,0.006,25648.0,25647.0,4.37861997]
[1694027098863,0.006,25648.0,25647.0,4.23854829]
[1694027099291,0.006,25648.0,25647.0,4.37864078]
[1694027099464,0.006,25648.0,25647.0,4.26154829]
[1694027100052,0.006,25648.0,25647.0,4.30819975]
[1694027100264,0.006,25648.0,25647.0,4.075893]
[1694027100462,0.01904943,25654.0,25649.0,0.4079]
[1694027100771,0.01904943,25654.0,25653.0,0.1216]
[1694027100972,0.01904943,25654.0,25653.0,2.460505]
[1694027101172,0.01904943,25654.0,25653.0,3.24014]
[1694027101949,0.03204943,25654.0,25653.0,3.24014]
[1694027102140,0.02,25656.0,25653.0,3.24014]
[1694027102141,0.01904943,25655.0,25653.0,3.24014]
[1694027102371,0.014,25654.0,25653.0,4.07015027]
[1694027102577,0.027,25654.0,25653.0,3.829105]
[1694027102737,0.027,25654.0,25653.0,3.92254687]
[1694027103630,0.027,25654.0,25653.0,4.52381683]
[1694027103861,0.027,25654.0,25653.0,4.06270968]
[1694027104076,0.027,25654.0,25653.0,3.92154687]
[1694027104077,0.013,25654.0,25653.0,3.92154687]
[1694027104283,0.154,25659.0,25653.0,4.06270968]
[1694027104284,0.023,25655.0,25653.0,4.06270968]
[1694027104510,0.023,25655.0,25654.0,0.5525]
[1694027104724,0.023,25655.0,25654.0,3.28479414]
[1694027104942,0.01904943,25658.0,25654.0,3.28479414]
[1694027105146,0.01904943,25658.0,25657.0,0.1216]
[1694027105357,0.01904943,25658.0,25657.0,3.239656]
[1694027107483,0.02304943,25658.0,25657.0,2.508142]
[1694027107703,0.27390263,25658.0,25657.0,0.048]
[1694027108427,0.02304943,25658.0,25657.0,2.508142]
[1694027110928,0.004,25658.0,25657.0,3.30363784]
[1694027111178,0.004,25658.0,25657.0,3.62663784]
[1694027112380,0.004,25658.0,25657.0,3.72663784]
[1694027112633,0.28714797,25665.0,25660.0,0.40885057]
[1694027112875,0.28714797,25665.0,25664.0,0.1216]
[1694027113123,0.28714797,25665.0,25664.0,1.83486011]
[1694027113396,0.28714797,25665.0,25664.0,3.238804]
[1694027113647,0.01904943,25666.0,25664.0,2.459503]
[1694027113902,0.01904943,25665.0,25664.0,1.558602]
[1694027114158,0.01904943,25665.0,25664.0,1.680202]
[1694027114646,0.02004943,25665.0,25664.0,1.698202]
[1694027115070,0.02204943,25665.0,25664.0,1.717202]
[1694027119549,0.02204943,25665.0,25664.0,2.496503]
[1694027119748,0.02204943,25665.0,25664.0,2.88314827]
[1694027119749,0.003,25665.0,25664.0,2.88314827]
[1694027123632,0.2652322,25665.0,25664.0,2.88314827]
[1694027123838,0.2652322,25665.0,25664.0,2.10384727]
[1694027124063,0.2652322,25665.0,25664.0,0.037]
[1694027124064,0.003,25665.0,25664.0,0.037]
[1694027124210,0.2544842,25665.0,25664.0,0.037]
[1694027124411,2.55897479,25665.0,25664.0,0.037]
[1694027125073,2.37986243,25665.0,25664.0,0.037]
[1694027125672,2.50146243,25665.0,25664.0,0.037]
[1694027126243,2.50046243,25665.0,25664.0,0.019]
[1694027126442,2.8871077,25665.0,25664.0,0.019]
[1694027126649,2.9604877,25665.0,25664.0,0.019]
[1694027126824,2.9604877,25665.0,25653.0,1.765414]
[1694027126825,0.01904943,25658.0,25653.0,1.765414]
[1694027127037,0.01904943,25657.0,25654.0,0.779585]
[1694027127274,0.01904943,25657.0,25654.0,2.338795]
[1694027127275,0.18514943,25657.0,25654.0,2.338795]
[1694027127474,0.18514943,25657.0,25655.0,0.91614527]
[1694027127692,0.18514943,25657.0,25656.0,2.338632]
[1694027128314,0.18614943,25657.0,25656.0,2.338632]
[1694027128753,0.18514943,25657.0,25656.0,2.338632]
[1694027128959,0.18514943,25657.0,25656.0,1.559088]
[1694027129795,0.18614943,25657.0,25656.0,1.568088]
[1694027129996,0.18714943,25657.0,25656.0,1.576088]
[1694027130224,0.18714943,25657.0,25656.0,0.017]
[1694027130640,0.18614943,25657.0,25656.0,0.008]
[1694027130852,0.18514943,25657.0,25655.0,2.35367327]
[1694027131054,0.18714943,25657.0,25656.0,0.017]
[1694027131478,0.18514943,25657.0,25655.0,0.779573]
[1694027131689,0.18614943,25657.0,25656.0,0.008]
[1694027132505,0.22267197,25657.0,25656.0,0.026]
[1694027132951,0.22167197,25657.0,25656.0,0.008]
[1694027133359,0.22167197,25657.0,25656.0,0.017]
[1694027133360,0.22267197,25657.0,25656.0,0.017]
[1694027133563,1.78169997,25657.0,25656.0,0.017]
[1694027136056,2.56121397,25657.0,25656.0,0.017]
[1694027137101,2.68281397,25657.0,25656.0,0.017]
[1694027137278,2.70281397,25657.0,25656.0,0.017]
[1694027137477,2.99148745,25657.0,25656.0,0.017]
[1694027137680,3.37813272,25657.0,25656.0,0.017]
[1694027137926,3.64498451,25657.0,25656.0,0.017]
[1694027138080,3.26437924,25657.0,25648.0,1.55954]
[1694027138277,3.26437924,25657.0,25648.0,1.71419811]
[1694027138278,0.1216,25654.0,25648.0,1.71419811]
[1694027138484,0.01904943,25651.0,25648.0,2.460927]
[1694027138683,0.01904943,25651.0,25648.0,2.64761564]
[1694027139099,0.01904943,25651.0,25648.0,2.64961564]
[1694027139493,0.01904943,25651.0,25648.0,3.53764005]
[1694027139705,0.01904943,25651.0,25650.0,0.1216]
[1694027139900,0.01904943,25651.0,25650.0,2.460781]
[1694027140101,0.01904943,25651.0,25650.0,1.681054]
[1694027140300,0.01904943,25651.0,25650.0,0.779727]
[1694027140501,0.02104943,25651.0,25650.0,0.779727]
[1694027140903,0.02004943,25651.0,25649.0,1.559484]
[1694027141104,0.0563406,25651.0,25650.0,0.008]
[1694027141787,0.0553406,25651.0,25650.0,0.008]
[1694027142284,0.0563406,25651.0,25650.0,0.017]
[1694027143745,2.3954286,25651.0,25650.0,0.017]
[1694027144103,1.6157326,25651.0,25650.0,0.017]
[1694027145490,2.3954286,25651.0,25650.0,0.017]
[1694027149374,1.6157326,25651.0,25650.0,0.017]
[1694027150962,2.3954286,25651.0,25650.0,0.017]
[1694027151395,1.6157326,25651.0,25650.0,0.017]
[1694027151919,2.49209647,25651.0,25650.0,0.017]
[1694027152103,3.5411467,25651.0,25650.0,0.017]
[1694027152336,3.5422867,25651.0,25650.0,0.017]
[1694027152557,3.5307667,25651.0,25650.0,0.017]
[1694027152768,3.5265867,25651.0,25650.0,0.008]
[1694027152990,3.5200067,25651.0,25643.0,1.71599]
[1694027153261,0.1216,25649.0,25643.0,1.71599]
[1694027153467,0.01904943,25646.0,25643.0,0.156121]
[1694027153698,0.79890043,25646.0,25643.0,0.156121]
[1694027153906,0.01904943,25646.0,25643.0,2.61753]
[1694027154116,0.01904943,25646.0,25644.0,0.91614527]
[1694027154320,0.01904943,25646.0,25645.0,3.672016]
[1694027154522,0.01904943,25646.0,25645.0,4.05866127]
[1694027155685,0.02004943,25646.0,25645.0,4.07666127]
[1694027156266,0.05580135,25646.0,25645.0,4.07666127]
[1694027156470,0.05480135,25646.0,25645.0,4.07666127]
[1694027156673,0.05680135,25646.0,25645.0,4.10066127]
[1694027157079,0.05580135,25646.0,25645.0,2.87188227]
[1694027157490,0.05780135,25646.0,25645.0,2.89688227]
[1694027158562,0.05780135,25646.0,25645.0,4.02146259]
[1694027158801,0.03875192,25646.0,25645.0,4.75236259]
[1694027159442,0.004,25646.0,25645.0,4.75236259]
[1694027161133,0.004,25646.0,25645.0,4.75331316]
[1694027161352,0.01904943,25651.0,25648.0,0.5295]
[1694027161559,0.01904943,25651.0,25650.0,0.1216]
[1694027161768,0.01904943,25651.0,25648.0,0.27625811]
[1694027161987,0.03353147,25650.0,25648.0,1.559536]
[1694027162590,0.03353147,25650.0,25646.0,0.779836]
[1694027162591,0.29108045,25650.0,25646.0,0.779836]
[1694027162845,0.29108045,25650.0,25645.0,1.62642757]
[1694027162846,0.01904943,25648.0,25645.0,1.91629157]
[1694027163051,0.01904943,25648.0,25645.0,1.91627757]
[1694027163685,0.01904943,25648.0,25645.0,1.89127757]
[1694027164110,0.79884243,25648.0,25645.0,0.3]
[1694027164309,0.79884243,25648.0,25645.0,0.024]
[1694027164310,0.01904943,25646.0,25645.0,0.024]
[1694027164416,0.01904943,25646.0,25645.0,1.14860374]
[1694027164833,0.01904943,25646.0,25645.0,1.17360374]
[1694027165654,0.01904943,25646.0,25645.0,1.14860374]
[1694027166060,0.01904943,25646.0,25645.0,1.12460374]
[1694027166259,0.02104943,25646.0,25645.0,1.14160374]
[1694027166710,1.57874543,25646.0,25645.0,1.12460374]
[1694027166907,1.58774543,25646.0,25645.0,0.001]
[1694027167136,0.02804943,25646.0,25645.0,1.12560374]
[1694027167280,0.02904943,25646.0,25645.0,1.14360374]
[1694027167723,0.02804943,25646.0,25645.0,1.12560374]
[1694027167931,0.02804943,25646.0,25645.0,1.12660374]
[1694027168358,0.01904943,25646.0,25645.0,2.68536174]
[1694027168574,0.01904943,25646.0,25645.0,3.46524074]
[1694027173057,0.01904943,25649.0,25648.0,3.6788822]
[1694027173474,0.01904943,25649.0,25648.0,3.58556474]
[1694027173678,0.02104943,25649.0,25648.0,3.60256474]
[1694027174107,0.0453769,25649.0,25648.0,3.58556474]
[1694027174314,0.0473769,25649.0,25648.0,3.60956474]
[1694027174526,0.0493769,25649.0,25648.0,3.63456474]
[1694027174734,0.0493769,25649.0,25648.0,3.32750627]
[1694027174940,0.02304943,25649.0,25648.0,4.54533541]
[1694027175992,0.02304943,25649.0,25648.0,5.14671357]
[1694027176201,0.02304943,25649.0,25648.0,4.09043541]
[1694027176416,0.02104943,25649.0,25648.0,2.70908568]
[1694027176619,0.02304943,25649.0,25648.0,2.73308568]
[1694027176825,0.01904943,25649.0,25648.0,2.68408568]
[1694027177041,0.04737481,25649.0,25648.0,1.584574]
[1694027177230,0.04937481,25649.0,25648.0,1.608574]
[1694027177461,0.04737481,25649.0,25648.0,1.584574]
[1694027177844,0.04937481,25649.0,25648.0,1.608574]
[1694027182659,0.04937481,25649.0,25648.0,0.049]
[1694027183089,1.60888881,25649.0,25648.0,0.049]
[1694027183301,0.82913181,25649.0,25648.0,0.049]
[1694027183839,0.82913181,25649.0,25648.0,0.024]
[1694027183840,0.82713181,25649.0,25648.0,0.024]
[1694027184050,0.82513181,25649.0,25645.0,0.03154709]
[1694027184242,0.82513181,25649.0,25648.0,0.001]
[1694027184672,0.82513181,25649.0,25644.0,0.39331746]
[1694027184919,0.1578,25648.0,25644.0,0.39331746]
[1694027185175,0.17684943,25648.0,25644.0,0.39331746]
[1694027185428,0.17684943,25648.0,25645.0,0.1216]
[1694027185672,0.17684943,25648.0,25645.0,0.90145]
[1694027185931,0.17684943,25648.0,25645.0,1.681316]
[1694027186187,0.17684943,25648.0,25645.0,2.461195]
[1694027186440,0.02630657,25647.0,25645.0,2.461195]
[1694027186942,0.02630657,25647.0,25645.0,2.470195]
[1694027187208,0.02630657,25647.0,25645.0,2.461195]
[1694027187698,0.02830657,25647.0,25645.0,2.479195]
[1694027188246,0.03030657,25647.0,25645.0,2.498195]
[1694027193682,0.03030657,25647.0,25645.0,1.718316]
[1694027193932,0.03030657,25647.0,25645.0,0.93845]
[1694027194475,0.03030657,25647.0,25645.0,0.18908177]
[1694027197696,0.03030657,25647.0,25646.0,0.1216]
[1694027197944,0.049356,25647.0,25646.0,0.1216]
[1694027198147,0.049356,25647.0,25645.0,0.06748177]
[1694027199361,0.047356,25647.0,25645.0,0.04848177]
[1694027199572,0.049356,25647.0,25646.0,0.019]
[1694027200131,0.047356,25647.0,25645.0,0.04848177]
[1694027200339,0.047356,25647.0,25645.0,0.04948177]
[1694027200769,0.049356,25647.0,25646.0,0.018]
[1694027200975,0.047356,25647.0,25645.0,0.04948177]
[1694027201196,0.049356,25647.0,25645.0,0.06748177]
[1694027201425,0.06057432,25647.0,25645.0,0.06748177]
[1694027202080,0.06057432,25647.0,25645.0,1.62723077]
[1694027202255,0.06057432,25647.0,25645.0,1.74883077]
[1694027202861,0.06057432,25647.0,25646.0,0.1216]
[1694027202862,0.05857432,25647.0,25646.0,0.1216]
[1694027203148,0.05857432,25647.0,25646.0,2.461144]
[1694027203351,0.06057432,25647.0,25646.0,2.479144]
[1694027203504,0.02104943,25647.0,25646.0,2.461144]
[1694027203684,0.01904943,25647.0,25646.0,2.461144]
[1694027203882,0.05548081,25647.0,25646.0,2.461144]
[1694027204087,0.05548081,25647.0,25646.0,2.480144]
[1694027204491,0.05748081,25647.0,25646.0,2.498144]
[1694027206770,0.05748081,25647.0,25646.0,3.29268927]
[1694027206989,0.02304943,25647.0,25646.0,3.31568927]
[1694027207195,0.02304943,25647.0,25646.0,2.12794127]
[1694027207600,0.02304943,25647.0,25646.0,2.90778927]
[1694027207914,0.0575037,25647.0,25646.0,2.90778927]
[1694027208134,0.02304943,25647.0,25646.0,2.90778927]
[1694027208868,0.02304943,25647.0,25646.0,2.12794127]
[1694027209428,0.02304943,25647.0,25646.0,2.90778927]
[1694027210032,0.004,25647.0,25646.0,3.31568927]
[1694027210303,0.004,25647.0,25646.0,4.74022298]
[1694027213864,0.004,25647.0,25646.0,4.93871306]
[1694027214034,0.004,25647.0,25646.0,4.85036104]
[1694027214246,0.004,25647.0,25646.0,4.84736104]
[1694027214457,0.004,25647.0,25646.0,4.94687306]
[1694027214653,0.004,25647.0,25646.0,4.95311306]
[1694027214860,0.004,25647.0,25646.0,5.05916363]
[1694027215064,0.09301633,25654.0,25649.0,0.40885057]
[1694027215271,0.25159026,25656.0,25653.0,0.5295]
[1694027215496,0.25159026,25656.0,25655.0,0.5295]
[1694027215695,0.09298783,25656.0,25655.0,3.40952838]
[1694027215919,0.25152087,25657.0,25655.0,3.43252838]
[1694027216219,0.25152087,25657.0,25656.0,0.53124527]
[1694027216220,0.11203726,25657.0,25656.0,0.53124527]
[1694027216441,0.11203726,25657.0,25656.0,2.86987727]
[1694027217057,0.01904943,25657.0,25656.0,2.86987727]
[1694027217264,0.04404943,25657.0,25656.0,2.86987727]
[1694027218339,0.025,25657.0,25656.0,3.27777727]
[1694027218573,0.025,25657.0,25656.0,3.85541327]
[1694027218801,0.17524943,25659.0,25656.0,3.85541327]
[1694027218987,0.01904943,25659.0,25658.0,0.1216]
[1694027219194,0.01904943,25659.0,25658.0,2.84669427]
[1694027219431,0.01904943,25659.0,25658.0,2.06721127]
[1694027219432,0.29462322,25659.0,25658.0,2.06721127]
[1694027219636,0.32617949,25659.0,25658.0,2.06721127]
[1694027219837,0.32617949,25659.0,25658.0,0.38664527]
[1694027219838,0.0506057,25659.0,25658.0,0.38664527]
[1694027220056,0.0506057,25659.0,25657.0,0.90111]
[1694027220263,0.22596559,25658.0,25657.0,1.28775527]
[1694027220470,0.22596559,25658.0,25657.0,0.50824527]
[1694027220684,0.29783074,25657.0,25656.0,0.156036]
[1694027220900,0.39081857,25657.0,25652.0,0.1216]
[1694027221108,0.01904943,25655.0,25653.0,1.859252]
[1694027221954,0.01904943,25655.0,25654.0,0.15606]
[1694027222155,0.01904943,25655.0,25654.0,0.935665]
[1694027222564,0.02004943,25655.0,25654.0,0.935665]
[1694027222772,0.02004943,25655.0,25654.0,0.15606]
[1694027222977,0.01904943,25655.0,25654.0,0.15606]
[1694027223219,0.02004943,25655.0,25654.0,0.18706]
[1694027223808,0.02004943,25655.0,25654.0,0.966665]
[1694027224775,0.02004943,25655.0,25654.0,0.18706]
[1694027225617,0.02004943,25655.0,25654.0,0.966665]
[1694027225826,0.02004943,25655.0,25654.0,1.74627]
[1694027226033,0.02004943,25655.0,25654.0,2.647475]
[1694027226236,0.02004943,25655.0,25654.0,3.03412027]
[1694027228895,0.02004943,25655.0,25654.0,0.18706]
[1694027230149,0.02004943,25655.0,25654.0,0.966665]
[1694027231207,0.05170792,25655.0,25654.0,0.966665]
[1694027231762,0.05170792,25655.0,25654.0,1.74627]
[1694027233038,0.05170792,25655.0,25654.0,2.525875]
[1694027234319,0.05170792,25655.0,25654.0,1.74627]
[1694027235990,0.05170792,25655.0,25654.0,2.525875]
[1694027237665,0.05170792,25655.0,25654.0,1.74627]
[1694027238580,0.05170792,25655.0,25654.0,2.525875]
[1694027240184,0.05170792,25655.0,25654.0,2.91252027]
[1694027240919,0.05170792,25655.0,25654.0,2.13291527]
[1694027244147,0.05170792,25655.0,25654.0,2.91252027]
[1694027245610,0.05170792,25655.0,25654.0,2.13291527]
[1694027245789,0.05170792,25655.0,25654.0,0.18706]
[1694027245995,0.05170792,25655.0,25654.0,1.74627]
[1694027246821,0.05170792,25655.0,25654.0,2.525875]
[1694027249341,0.05170792,25655.0,25654.0,3.03412027]
[1694027249544,0.05170792,25655.0,25654.0,3.44202027]
[1694027249802,0.001,25655.0,25654.0,3.46502027]
[1694027250254,0.001,25655.0,25654.0,4.58927308]
[1694027250473,0.001,25655.0,25654.0,4.88927308]
[1694027250672,0.001,25655.0,25654.0,3.76502027]
[1694027252573,0.001,25655.0,25654.0,4.88925799]
[1694027253144,0.001,25655.0,25654.0,3.76502027]
[1694027255049,0.001,25655.0,25654.0,3.35712027]
[1694027255251,0.03266531,25655.0,25654.0,3.35712027]
[1694027255691,0.03266531,25655.0,25654.0,2.947475]
[1694027256400,0.001,25655.0,25654.0,2.947475]
[1694027257972,0.001,25655.0,25654.0,2.97815475]
[1694027259397,0.001,25655.0,25654.0,2.07694975]
[1694027259609,0.03266512,25655.0,25654.0,2.07694975]
[1694027259812,0.03266512,25655.0,25654.0,2.85655475]
[1694027261042,0.03266512,25655.0,25654.0,2.97815475]
[1694027264361,0.03266512,25655.0,25654.0,2.19854975]
[1694027265348,0.03266512,25655.0,25654.0,2.97815475]
[1694027276420,0.03266512,25655.0,25654.0,2.19854975]
[1694027276801,0.03266512,25655.0,25654.0,2.07694975]
[1694027278282,1.55929493,25655.0,25654.0,0.031]
[1694027278488,2.03340818,25655.0,25654.0,0.031]
[1694027279723,2.81298318,25655.0,25654.0,0.031]
[1694027280150,2.81298318,25655.0,25654.0,0.015]
[1694027280566,2.81798318,25655.0,25654.0,0.002]
[1694027280977,3.35402845,25655.0,25650.0,0.0001]
[1694027281188,0.35429007,25652.0,25650.0,0.0001]
[1694027281392,0.01904943,25651.0,25650.0,0.0001]
[1694027281571,0.05052249,25651.0,25650.0,0.0001]
[1694027282737,0.05052249,25651.0,25650.0,0.0021]
[1694027283002,0.14359852,25651.0,25650.0,0.0021]
[1694027283203,3.39869096,25651.0,25650.0,0.0021]
[1694027283414,3.45262046,25651.0,25650.0,0.0021]
[1694027284048,3.68614789,25651.0,25650.0,0.0111]
[1694027284459,3.70914789,25651.0,25650.0,0.0021]
[1694027284636,3.68514789,25651.0,25650.0,0.0001]
[1694027284884,3.73414789,25651.0,25650.0,0.0041]
[1694027285292,3.68514789,25651.0,25650.0,0.0001]
[1694027285498,3.70914789,25651.0,25650.0,0.0021]
[1694027285608,3.88434789,25651.0,25650.0,0.0041]
[1694027285810,3.78378629,25651.0,25650.0,0.0041]
[1694027286639,3.78378629,25651.0,25650.0,0.0021]
[1694027286640,3.75978629,25651.0,25650.0,0.0021]
[1694027286850,3.71270908,25651.0,25650.0,0.0001]
[1694027287255,3.60956395,25651.0,25650.0,0.0021]
[1694027287451,3.63356395,25651.0,25650.0,0.0041]
[1694027287654,3.60856395,25651.0,25650.0,0.0021]
[1694027288051,3.5630051,25651.0,25650.0,0.0021]
[1694027288251,3.5870051,25651.0,25650.0,0.0041]
[1694027288455,3.92465037,25651.0,25650.0,0.0001]
[1694027288876,3.92465037,25651.0,25650.0,0.0041]
[1694027288877,3.88069596,25651.0,25650.0,0.0041]
[1694027289080,3.85669596,25651.0,25650.0,0.0021]
[1694027289279,3.88069596,25651.0,25650.0,0.0041]
[1694027290089,3.85569596,25651.0,25650.0,0.0021]
[1694027290291,3.88069596,25651.0,25650.0,0.0041]
[1694027290466,3.85669596,25651.0,25650.0,0.0021]
[1694027290701,3.88069596,25651.0,25650.0,0.0041]
[1694027291080,3.85569596,25651.0,25650.0,0.0021]
[1694027291286,3.66776103,25651.0,25650.0,0.0021]
[1694027291435,3.66776103,25651.0,25650.0,0.0041]
[1694027291436,3.94983993,25651.0,25650.0,0.0041]
[1694027291644,3.88341993,25651.0,25650.0,0.0041]
[1694027291863,3.85941993,25651.0,25650.0,0.0021]
[1694027292075,3.88341993,25651.0,25650.0,0.0041]
[1694027292440,3.85941993,25651.0,25650.0,0.0021]
[1694027292641,3.92637993,25651.0,25650.0,0.0021]
[1694027292849,3.92535993,25651.0,25650.0,0.0021]
[1694027293046,3.92727993,25651.0,25650.0,0.0021]
[1694027293330,3.92775993,25651.0,25650.0,0.0021]
[1694027293574,3.92799993,25651.0,25650.0,0.0021]
[1694027293828,3.67074103,25651.0,25650.0,0.0021]
[1694027294034,3.67122103,25651.0,25650.0,0.0021]
[1694027294269,3.69522103,25651.0,25650.0,0.0041]
[1694027294467,3.69510103,25651.0,25650.0,0.0041]
[1694027294692,3.69504103,25651.0,25650.0,0.0041]
[1694027294895,3.70164103,25651.0,25650.0,0.0041]
[1694027295096,3.71166103,25651.0,25650.0,0.0041]
[1694027295297,3.71334103,25651.0,25650.0,0.0041]
[1694027295523,3.71088103,25651.0,25650.0,0.0041]
[1694027295719,3.71154103,25651.0,25650.0,0.0041]
[1694027296002,3.71202103,25651.0,25650.0,0.0041]
[1694027296214,3.71190103,25651.0,25650.0,0.0041]
[1694027296419,3.71508103,25651.0,25650.0,0.0041]
[1694027296941,3.71514103,25651.0,25650.0,0.0041]
[1694027297140,3.71532103,25651.0,25650.0,0.0041]
[1694027297407,3.71538103,25651.0,25650.0,0.0041]
[1694027297611,3.71346103,25651.0,25650.0,0.0041]
[1694027297816,3.71502103,25651.0,25650.0,0.0041]
[1694027298023,3.71550103,25651.0,25650.0,0.0041]
[1694027298199,3.71502103,25651.0,25650.0,0.0041]
[1694027298503,3.71490103,25651.0,25650.0,0.0041]
[1694027298856,3.71994103,25651.0,25650.0,0.0041]
[1694027299015,3.71928103,25651.0,25650.0,0.0041]
[1694027299335,3.99503909,25651.0,25650.0,0.0041]
[1694027299536,3.99011909,25651.0,25650.0,0.0041]
[1694027299769,3.72108103,25651.0,25650.0,0.0041]
[1694027299969,3.94917344,25651.0,25650.0,0.0041]
[1694027300106,3.96183344,25651.0,25650.0,0.0041]
[1694027300309,3.96447344,25651.0,25650.0,0.0041]
[1694027300703,3.96399344,25651.0,25650.0,0.0041]
[1694027300906,3.96453344,25651.0,25650.0,0.0041]
[1694027301086,3.71886103,25651.0,25650.0,0.0041]
[1694027301290,3.72114103,25651.0,25650.0,0.0041]
[1694027301494,3.72816103,25651.0,25650.0,0.0041]
[1694027301774,3.72432103,25651.0,25650.0,0.0041]
[1694027301981,3.72540103,25651.0,25650.0,0.0041]
[1694027302189,3.72744103,25651.0,25650.0,0.0041]
[1694027302396,3.72708103,25651.0,25650.0,0.0041]
[1694027302604,3.72648103,25651.0,25650.0,0.0041]
[1694027302784,3.72534103,25651.0,25650.0,0.0041]
[1694027303018,3.72528103,25651.0,25650.0,0.0041]
[1694027303229,3.72588103,25651.0,25650.0,0.0041]
[1694027303433,3.72642103,25651.0,25650.0,0.0041]
[1694027303634,3.72708103,25651.0,25650.0,0.0041]
[1694027303762,3.72852103,25651.0,25650.0,0.0041]
[1694027303968,3.72750103,25651.0,25650.0,0.0041]
[1694027304192,3.72570103,25651.0,25650.0,0.0041]
[1694027304441,3.72726103,25651.0,25650.0,0.0041]
[1694027304796,3.72510103,25651.0,25650.0,0.0041]
[1694027305007,3.72438103,25651.0,25650.0,0.0041]
[1694027305450,3.72450103,25651.0,25650.0,0.0041]
[1694027305654,3.72918103,25651.0,25650.0,0.0041]
[1694027305832,3.72804103,25651.0,25650.0,0.0041]
[1694027306039,3.72816103,25651.0,25650.0,0.0041]
[1694027306217,3.72636103,25651.0,25650.0,0.0041]
[1694027306417,3.72630103,25651.0,25650.0,0.0041]
[1694027306615,3.72624103,25651.0,25650.0,0.0041]
[1694027306821,4.01573244,25651.0,25650.0,0.0041]
[1694027307066,4.00301244,25651.0,25650.0,0.0041]
[1694027307249,4.00595244,25651.0,25650.0,0.0041]
[1694027307479,4.00643244,25651.0,25650.0,0.0041]
[1694027307681,4.00937244,25651.0,25650.0,0.0041]
[1694027308057,4.00943244,25651.0,25650.0,0.0041]
[1694027308274,3.71988103,25651.0,25650.0,0.0041]
[1694027308482,3.72012103,25651.0,25650.0,0.0041]
[1694027308884,3.72018103,25651.0,25650.0,0.0041]
[1694027309086,3.93856016,25651.0,25650.0,0.0041]
[1694027309341,3.93484016,25651.0,25650.0,0.0041]
[1694027309542,3.93538016,25651.0,25650.0,0.0041]
[1694027309762,3.93532016,25651.0,25650.0,0.0041]
[1694027309964,3.93352016,25651.0,25650.0,0.0041]
[1694027310119,3.92848016,25651.0,25650.0,0.0041]
[1694027310321,3.92338016,25651.0,25650.0,0.0041]
[1694027310507,3.92368016,25651.0,25650.0,0.0041]
[1694027310708,3.92554016,25651.0,25650.0,0.0041]
[1694027310905,3.92584016,25651.0,25650.0,0.0041]
[1694027311115,3.92668016,25651.0,25650.0,0.0041]
[1694027311342,3.92530016,25651.0,25650.0,0.0041]
[1694027311517,3.92896016,25651.0,25650.0,0.0041]
[1694027311719,3.93244016,25651.0,25650.0,0.0041]
[1694027312055,3.93250016,25651.0,25650.0,0.0041]
[1694027312235,3.93238016,25651.0,25650.0,0.0041]
[1694027312443,3.93256016,25651.0,25650.0,0.0041]
[1694027312641,3.93274016,25651.0,25650.0,0.0041]
[1694027312838,3.92950016,25651.0,25650.0,0.0041]
[1694027313019,3.93280016,25651.0,25650.0,0.0041]
[1694027313218,3.93946016,25651.0,25650.0,0.0041]
[1694027313466,3.93958016,25651.0,25650.0,0.0041]
[1694027313643,3.93532016,25651.0,25650.0,0.0041]
[1694027313852,3.93238016,25651.0,25650.0,0.0041]
[1694027314216,3.93370016,25651.0,25650.0,0.0041]
[1694027314664,3.93316016,25651.0,25650.0,0.0041]
[1694027314871,3.93790016,25651.0,25650.0,0.0041]
[1694027315073,3.93610016,25651.0,25650.0,0.0041]
[1694027315186,3.93466016,25651.0,25650.0,0.0041]
[1694027315392,3.93460016,25651.0,25650.0,0.0041]
[1694027315640,3.93418016,25651.0,25650.0,0.0041]
[1694027315791,3.72306103,25651.0,25650.0,0.0041]
[1694027315992,3.72708103,25651.0,25650.0,0.0041]
[1694027316217,4.04070103,25651.0,25650.0,0.0041]
[1694027316419,4.04062736,25651.0,25650.0,0.0041]
[1694027316810,4.04008736,25651.0,25650.0,0.0041]
[1694027317570,4.04014736,25651.0,25650.0,0.0041]
[1694027317749,4.04020736,25651.0,25650.0,0.0041]
[1694027317954,4.04008736,25651.0,25650.0,0.0041]
[1694027318160,4.04020736,25651.0,25650.0,0.0041]
[1694027318524,4.04026736,25651.0,25650.0,0.0041]
[1694027319318,4.04188736,25651.0,25650.0,0.0041]
[1694027319504,4.04182736,25651.0,25650.0,0.0041]
[1694027319705,4.06188736,25651.0,25650.0,0.0041]
[1694027319912,4.06206736,25651.0,25650.0,0.0041]
[1694027320286,4.06194736,25651.0,25650.0,0.0041]
[1694027320486,4.06188736,25651.0,25650.0,0.0041]
[1694027320708,4.06398736,25651.0,25650.0,0.0041]
[1694027321113,4.53260736,25651.0,25650.0,0.0041]
[1694027321312,4.53260736,25651.0,25642.0,0.36419699]
[1694027321313,0.85891476,25643.0,25642.0,0.36419699]
[1694027321537,0.85891476,25643.0,25642.0,0.01989699]
[1694027321738,1.90088904,25643.0,25642.0,0.01989699]
[1694027321918,1.66799275,25643.0,25642.0,0.01989699]
[1694027322095,2.44793175,25643.0,25642.0,0.01989699]
[1694027322717,2.44993175,25643.0,25642.0,0.03989699]
[1694027323210,2.44793175,25643.0,25642.0,0.01989699]